[Event "WYCC 2018 G14"]
[Site "Halkidiki"]
[Date "2018.10.21"]
[Round "2"]
[White "Mrudul Dehankar"]
[Black "Zeliantsova, Kseniya"]
[Result "1-0"]
[ECO "A45"]
[WhiteElo "1996"]
[BlackElo "1804"]
[Annotator "NA"]
[PlyCount "91"]
[EventDate "2018.10.20"]
[EventType "swiss"]
[EventCountry "GRE"]
[SourceTitle "playchess.com"]
[Source "ChessBase"]
[SourceQuality "1"]
[TimeControl "40/5400+30:1800+30"]

1. d4 {[%emt 0:00:00]} Nf6 {[%emt 0:00:00]} 2. Bf4 {[%emt 0:00:00]} d5 {[%emt 0:00:00]} 3. e3 {[%emt 0:00:09]} c5 {[%emt 0:00:00]} 4. c3 {[%emt 0:00:21]} Nc6 {[%emt 0:00:46]} 5. Nd2 {[%emt 0:00:11]} Bf5 {[%emt 0:01:10]} 6. Ngf3 {[%emt 0:03:45]} e6 {[%emt 0:03:33]} 7. Bb5 {[%emt 0:15:06] D00: 1 d4 d5: Unusual lines} (7. Nh4 Be4 8. Qb3 Qc8 9. Nhf3 Bf5 10. Be2 Be7 11. O-O O-O 12. h3 h6 13. Rfe1 c4 14. Qd1 b5 {1-0 (66) Grachev,B (2626)-Najer,E (2663) Moscow 2018}) 7... Qb6 {[%emt 0:02:56]} 8. Qa4 {[%emt 0:03:47]} Nd7 {[%emt 0:14:50]} 9. O-O {[%emt 0:07:04]} a6 {[%emt 0:04:34]} 10. c4 $146 {[%emt 0:09:35]} ({Predecessor:} 10. Bxc6 Qxc6 11. Qxc6 bxc6 12. Rfe1 Be7 13. Nb3 Rc8 14. h3 f6 15. dxc5 {0-1 (30) Zach,A (2321)-Krivoborodov,E (2511) Germany 2015}) 10... Bd3 {[%emt 0:15:46]} 11. Rfe1 {[%emt 0:08:01]} Be7 {[%emt 0:04:21]} 12. e4 {[%emt 0:14:39]} dxe4 {[%emt 0:07:53]} 13. Nxe4 {[%emt 0:01:56]} Bxe4 {[%emt 0:02:42]} 14. Rxe4 {[%emt 0:00:07]} cxd4 {[%emt 0:01:57]} 15. Bxc6 {[%emt 0:03:25]} bxc6 {[%emt 0:00:08]} 16. Rxd4 {[%emt 0:00:54]} Nc5 {[%emt 0:13:19]} 17. Qc2 {[%emt 0:01:09]} O-O {[%emt 0:00:50]} 18. Rad1 {[%emt 0:14:58]} Rfd8 {[%emt 0:07:47]} 19. Be3 {[%emt 0:02:42]} Rdb8 {[%emt 0:06:40]} 20. b3 {[%emt 0:06:53]} a5 {[%emt 0:02:53]} 21. Ne5 {[%emt 0:02:15]} Bf6 {[%emt 0:03:18]} 22. Nd7 {[%emt 0:02:08]} Nxd7 {[%emt 0:00:04]} 23. Rxd7 {[%emt 0:00:04]} Qb4 {[%emt 0:01:50]} 24. g4 {[%emt 0:01:26]} h6 {[%emt 0:00:54]} 25. Qe4 {[%emt 0:00:58]} a4 {[%emt 0:02:32]} 26. Qf3 {[%emt 0:00:41]} Rf8 {[%emt 0:01:13]} 27. Bxh6 {[%emt 0:00:21]} axb3 {[%emt 0:00:33]} 28. axb3 {[%emt 0:00:07]} c5 {[%emt 0:00:34]} 29. Bf4 {[%emt 0:00:21]} Ra2 {[%emt 0:00:33]} 30. Bd6 {[%emt 0:00:39]} Rd8 {[%emt 0:00:21]} 31. Rxd8+ {[%emt 0:00:17]} Bxd8 {[%emt 0:00:04]} 32. Bxc5 {[%emt 0:00:08]} Qa5 {[%emt 0:00:28]} 33. Kg2 {[%emt 0:01:18]} Bf6 {[%emt 0:00:31]} 34. Be3 {[%emt 0:00:41]} Qc7 {[%emt 0:00:46]} 35. g5 {[%emt 0:00:48]} Be5 {[%emt 0:00:09]} 36. c5 {[%emt 0:00:29]} Rc2 {[%emt 0:00:43]} 37. Qe4 {[%emt 0:00:29]} Rb2 {[%emt 0:00:42]} 38. Qa8+ {[%emt 0:00:29]} Kh7 {[%emt 0:00:06]} 39. Rd8 {[%emt 0:00:30]} Kg6 {[%emt 0:01:23]} 40. Qe4+ {[%emt 0:00:00]} f5 {[%emt 0:00:00]} 41. gxf6+ {[%emt 0:00:44]} Kxf6 {[%emt 0:00:08]} 42. Qh4+ {[%emt 0:00:33]} Kf7 {[%emt 0:03:41]} 43. Qh5+ {[%emt 0:01:03]} Ke7 {[%emt 0:00:12]} 44. Re8+ {[%emt 0:00:14]} Kd7 {[%emt 0:00:09]} 45. Qf7+ {[%emt 0:00:07]} Kc6 {[%emt 0:00:05]} 46. Qxe6+ {[%emt 0:00:51] Kd5} 1-0

[Event "WYCC 2018 G14"]
[Site "Halkidiki"]
[Date "2018.10.21"]
[Round "2"]
[White "Matus, Nastassja"]
[Black "Yellamraju, Aparna"]
[Result "1-0"]
[ECO "E06"]
[WhiteElo "1983"]
[BlackElo "1518"]
[Annotator "NA"]
[PlyCount "129"]
[EventDate "2018.10.20"]
[EventType "swiss"]
[EventCountry "GRE"]
[SourceTitle "playchess.com"]
[Source "ChessBase"]
[SourceQuality "1"]
[TimeControl "40/5400+30:1800+30"]

1. d4 {[%emt 0:00:00]} e6 {[%emt 0:00:00]} 2. c4 {[%emt 0:00:00]} Nf6 {[%emt 0:00:00]} 3. g3 {[%emt 0:00:00]} d5 {[%emt 0:00:00]} 4. Nf3 {[%emt 0:00:40]} Be7 {[%emt 0:00:00]} 5. Bg2 {[%emt 0:00:10]} O-O {[%emt 0:00:10]} 6. O-O {[%emt 0:00:08]} c6 {[%emt 0:00:06]} 7. Qc2 {[%emt 0:00:25]} b6 {[%emt 0:00:16]} 8. b3 {[%emt 0:01:04]} Nbd7 {[%emt 0:00:38]} 9. Nc3 {[%emt 0:06:43]} Bb7 {[%emt 0:05:25] E08: Closed Catalan: Main Line: 7 Qc2} (9... Ba6 10. e4 dxc4 11. Rd1 cxb3 12. axb3 Bb7 {½-½ (12) Vallejo Pons,F (2711)-Anton Guijarro,D (2627) Madrid 2016}) 10. e4 {[%emt 0:01:55]} Rc8 {[%emt 0:04:39]} 11. e5 {[%emt 0:10:43]} Ne8 $1 {[%emt 0:04:34]} 12. cxd5 $146 {[%emt 0:03:17]} ({Predecessor:} 12. h4 Nc7 13. Bg5 Re8 14. Bxe7 Qxe7 15. Ng5 Nf8 16. Rad1 Red8 17. Kh2 {1-0 (33) Tobisch,J (1914)-Colter,N (1754) Amersham 2012}) 12... cxd5 {[%emt 0:00:31]} 13. Bb2 {[%emt 0:01:34]} Nc7 {[%emt 0:03:23]} 14. Qd2 {[%emt 0:04:02]} Ba6 {[%emt 0:12:14]} 15. Rfc1 {[%emt 0:03:38]} Nb8 {[%emt 0:04:41]} 16. Nd1 {[%emt 0:10:46]} Qd7 {[%emt 0:05:18]} 17. Ne1 {[%emt 0:08:00]} Nc6 {[%emt 0:07:09]} 18. Nc2 {[%emt 0:02:30]} Bb7 {[%emt 0:04:02]} 19. f4 {[%emt 0:04:33]} a5 {[%emt 0:13:48]} 20. Nde3 {[%emt 0:04:15]} Ba6 {[%emt 0:02:35]} 21. Bh3 {[%emt 0:06:28]} Nb4 {[%emt 0:05:05]} 22. Ne1 {[%emt 0:06:01]} g6 {[%emt 0:07:00]} 23. a3 {[%emt 0:05:30]} Nc6 {[%emt 0:00:21]} 24. Nf3 {[%emt 0:00:48]} Rfd8 {[%emt 0:02:13]} 25. Ng4 {[%emt 0:02:50]} Ne8 {[%emt 0:00:35]} 26. Ng5 {[%emt 0:01:34]} Kg7 {[%emt 0:00:54]} 27. Nf3 {[%emt 0:06:31]} h5 {[%emt 0:03:09]} 28. Ne3 {[%emt 0:00:48]} Bf8 {[%emt 0:01:18]} 29. Kh1 {[%emt 0:01:06]} Ne7 {[%emt 0:00:19]} 30. Rg1 {[%emt 0:02:59]} Ng8 {[%emt 0:01:01]} 31. g4 {[%emt 0:02:19]} hxg4 {[%emt 0:01:45]} 32. Rxg4 {[%emt 0:00:33]} Nh6 {[%emt 0:01:26]} 33. Rg3 {[%emt 0:00:47]} Be7 {[%emt 0:02:13]} 34. Rag1 {[%emt 0:01:25]} Kh8 {[%emt 0:05:49]} 35. f5 {[%emt 0:01:58]} exf5 {[%emt 0:02:59]} 36. Nc4 {[%emt 0:01:00]} Kg7 {[%emt 0:01:37]} 37. Nxb6 {[%emt 0:00:16]} Qb5 {[%emt 0:00:10]} 38. Nxc8 {[%emt 0:00:16]} Rxc8 {[%emt 0:00:05]} 39. Bf1 {[%emt 0:00:59]} Qb6 {[%emt 0:00:28]} 40. Bxa6 {[%emt 0:00:00]} Qxa6 {[%emt 0:00:00]} 41. Rh3 {[%emt 0:06:24]} Ng8 {[%emt 0:03:18]} 42. Nh4 {[%emt 0:03:30]} Bxh4 {[%emt 0:03:10]} 43. Rxh4 {[%emt 0:00:11]} Qb5 {[%emt 0:02:33]} 44. Rh3 {[%emt 0:00:57]} a4 {[%emt 0:01:22]} 45. bxa4 {[%emt 0:06:21]} Qxa4 {[%emt 0:00:26]} 46. Rc3 {[%emt 0:00:42]} Rb8 {[%emt 0:00:33]} 47. Rgc1 {[%emt 0:02:50]} Ne7 {[%emt 0:02:53]} 48. Rh3 {[%emt 0:00:40]} Ng8 {[%emt 0:01:15]} 49. Qc2 {[%emt 0:02:14]} Qb5 {[%emt 0:02:09]} 50. Bc3 {[%emt 0:00:51]} Qd7 {[%emt 0:02:14]} 51. Bb4 {[%emt 0:00:48]} f4 {[%emt 0:03:46]} 52. Rh4 {[%emt 0:02:04]} f3 {[%emt 0:01:48]} 53. Rf4 {[%emt 0:01:40]} Nh6 {[%emt 0:02:49]} 54. Rxf3 {[%emt 0:00:38]} Qg4 {[%emt 0:00:37]} 55. Qf2 {[%emt 0:01:46]} Rb7 {[%emt 0:02:13]} 56. Rf4 {[%emt 0:01:16]} Qd7 {[%emt 0:00:53]} 57. Qd2 {[%emt 0:00:55]} Nc7 {[%emt 0:01:23]} 58. Rf3 {[%emt 0:02:03]} Ne6 {[%emt 0:01:40]} 59. Rg1 {[%emt 0:01:29]} Rb8 {[%emt 0:00:32]} 60. Qf2 {[%emt 0:00:45]} Qa7 {[%emt 0:00:56]} 61. Rd3 {[%emt 0:00:38]} Qa6 $18 {[%emt 0:00:26]} 62. Qf6+ {[%emt 0:01:00]} Kh7 {[%emt 0:01:19]} 63. Rh3 {[%emt 0:00:19]} Rh8 {[%emt 0:02:05]} 64. Rxh6+ {[%emt 0:00:19]} Kxh6 {[%emt 0:00:16]} 65. Qxh8# {[%emt 0:00:08]} 1-0

[Event "WYCC 2018 G14"]
[Site "Halkidiki"]
[Date "2018.10.21"]
[Round "2"]
[White "Sim, Jia Ru"]
[Black "Zhou, Iris"]
[Result "1/2-1/2"]
[ECO "B50"]
[WhiteElo "1979"]
[BlackElo "1779"]
[Annotator "NA"]
[PlyCount "116"]
[EventDate "2018.10.20"]
[EventType "swiss"]
[EventCountry "GRE"]
[SourceTitle "playchess.com"]
[Source "ChessBase"]
[SourceQuality "1"]
[TimeControl "40/5400+30:1800+30"]

1. e4 {[%emt 0:00:00]} c5 {[%emt 0:00:00]} 2. Nf3 {[%emt 0:00:00]} d6 {[%emt 0:00:00]} 3. c3 {[%emt 0:00:00]} Nf6 {[%emt 0:00:00]} 4. Be2 {[%emt 0:00:00]} Nc6 {[%emt 0:00:00]} 5. d4 {[%emt 0:00:30]} cxd4 {[%emt 0:00:11]} 6. cxd4 {[%emt 0:00:18]} Nxe4 {[%emt 0:01:23]} 7. d5 {[%emt 0:00:49]} Qa5+ {[%emt 0:00:08]} 8. Nc3 {[%emt 0:00:14]} Nxc3 {[%emt 0:00:11]} 9. bxc3 {[%emt 0:00:07]} Ne5 {[%emt 0:00:51]} 10. O-O {[%emt 0:02:42] B50: Sicilian: 2...d6, Miscellaneous} Nxf3+ {[%emt 0:00:36]} (10... e6 11. Nxe5 dxe5 12. Rb1 a6 13. Bf3 Bc5 14. d6 Ra7 15. Bg5 b5 16. Bc6+ Bd7 17. Qf3 f6 18. Bxf6 {1-0 (30) Antipov,M (2567)-Van Foreest,J (2541) Wijk aan Zee 2016}) 11. Bxf3 {[%emt 0:00:39]} g6 {[%emt 0:01:09]} 12. Qd4 {[%emt 0:04:12]} f6 {[%emt 0:00:30]} 13. Re1 {[%emt 0:02:26]} Kf7 {[%emt 0:00:50]} 14. Bf4 {[%emt 0:05:02]} Bg7 $146 {[%emt 0:01:31]} ({Predecessor:} 14... Qc7 15. Re3 Bg7 16. Rae1 Re8 17. h4 Bd7 {½-½ (36) Nun,J (2415)-Jirovsky,P (2315) Czechia 1996}) 15. Qe3 {[%emt 0:13:00]} Qc7 {[%emt 0:05:13]} 16. c4 {[%emt 0:00:38]} Re8 {[%emt 0:05:02]} 17. Rac1 {[%emt 0:00:28]} b6 {[%emt 0:04:29]} 18. h4 {[%emt 0:07:24]} Qc5 {[%emt 0:16:18]} 19. Qb3 {[%emt 0:03:15]} Bd7 {[%emt 0:06:37]} 20. h5 {[%emt 0:05:26]} Rac8 {[%emt 0:07:07]} 21. Be3 {[%emt 0:06:21]} Qc7 {[%emt 0:00:49]} 22. Qd3 {[%emt 0:05:45]} Bf5 {[%emt 0:06:19]} 23. Qd4 {[%emt 0:00:18]} Bd7 {[%emt 0:09:40]} 24. h6 {[%emt 0:07:31]} Bh8 {[%emt 0:01:01]} 25. Qh4 {[%emt 0:05:00]} Qb7 {[%emt 0:06:00]} 26. Re2 {[%emt 0:20:18]} Qa6 {[%emt 0:03:31]} 27. Rec2 {[%emt 0:04:46]} Ba4 {[%emt 0:03:27]} 28. Rc3 {[%emt 0:00:12]} f5 {[%emt 0:04:14]} 29. Bd4 {[%emt 0:00:09]} Bf6 {[%emt 0:02:01]} 30. Qf4 {[%emt 0:00:29]} b5 {[%emt 0:09:49]} 31. Qe3 {[%emt 0:03:17]} Be5 {[%emt 0:03:44]} 32. cxb5 {[%emt 0:02:30]} Rxc3 {[%emt 0:02:12]} 33. Qxc3 {[%emt 0:00:59]} Bxb5 {[%emt 0:00:29]} 34. Bxe5 {[%emt 0:00:32]} dxe5 {[%emt 0:00:05]} 35. Qxe5 {[%emt 0:00:03]} Qf6 {[%emt 0:00:22]} 36. Qe3 {[%emt 0:01:21]} a6 {[%emt 0:00:53]} 37. Qb3 {[%emt 0:00:30]} Qd6 {[%emt 0:01:00]} 38. a4 {[%emt 0:00:39]} Bd7 {[%emt 0:00:14]} 39. Qc3 {[%emt 0:00:38]} Qf6 {[%emt 0:00:18]} 40. Qc4 {[%emt 0:00:00]} Qd6 {[%emt 0:00:00]} 41. Qd4 {[%emt 0:00:19]} Qf6 {[%emt 0:00:59]} 42. Qxf6+ {[%emt 0:09:15]} Kxf6 {[%emt 0:00:22]} 43. a5 {[%emt 0:00:10]} Rc8 {[%emt 0:06:22]} 44. Rd1 {[%emt 0:01:06]} Rc5 {[%emt 0:02:21]} 45. d6 {[%emt 0:01:03]} Rxa5 {[%emt 0:00:29]} 46. dxe7 {[%emt 0:02:56]} Kxe7 {[%emt 0:00:06]} 47. Bd5 {[%emt 0:01:03]} Be6 {[%emt 0:01:01]} 48. Bxe6 {[%emt 0:00:33]} Kxe6 {[%emt 0:00:05]} 49. Rd8 {[%emt 0:00:06]} Rd5 {[%emt 0:01:44]} 50. Ra8 {[%emt 0:00:36]} a5 {[%emt 0:05:30]} 51. Ra6+ {[%emt 0:00:18]} Ke7 {[%emt 0:01:09]} 52. Ra7+ {[%emt 0:00:05]} Rd7 {[%emt 0:00:04]} 53. Rxa5 {[%emt 0:00:05]} Kf6 {[%emt 0:00:58]} 54. f4 {[%emt 0:00:34]} Re7 {[%emt 0:00:29]} 55. Ra8 {[%emt 0:00:26]} Re1+ {[%emt 0:01:30]} 56. Kf2 {[%emt 0:00:06]} Rh1 {[%emt 0:03:13]} 57. Ra6+ {[%emt 0:00:48]} Kf7 {[%emt 0:00:05]} 58. Ra7+ {[%emt 0:00:32]} Kg8 $11 {[%emt 0:00:06]} 1/2-1/2

[Event "WYCC 2018 G14"]
[Site "Halkidiki"]
[Date "2018.10.21"]
[Round "2"]
[White "Lehaci, Miruna-Daria"]
[Black "Nurgali, Nazerke"]
[Result "0-1"]
[ECO "B12"]
[WhiteElo "1933"]
[BlackElo "2263"]
[Annotator "NA"]
[PlyCount "112"]
[EventDate "2018.10.20"]
[EventType "swiss"]
[EventCountry "GRE"]
[SourceTitle "playchess.com"]
[Source "ChessBase"]
[SourceQuality "1"]
[TimeControl "40/5400+30:1800+30"]

1. e4 {[%emt 0:00:00]} c6 {[%emt 0:00:00]} 2. d4 {[%emt 0:00:00]} d5 {[%emt 0:00:00]} 3. e5 {[%emt 0:00:00]} Bf5 {[%emt 0:00:03]} 4. Nf3 {[%emt 0:00:00]} e6 {[%emt 0:00:16]} 5. Be2 {[%emt 0:00:00]} Ne7 {[%emt 0:00:12]} 6. O-O {[%emt 0:00:02]} Bg6 {[%emt 0:00:14]} 7. Nbd2 {[%emt 0:00:24]} c5 {[%emt 0:02:43] B12: Caro-Kann: Advance Variation} 8. c4 {[%emt 0:00:16]} Nec6 {[%emt 0:01:46]} 9. cxd5 {[%emt 0:02:04]} Qxd5 {[%emt 0:00:36]} 10. Bc4 {[%emt 0:01:17]} Qd8 {[%emt 0:02:04]} 11. dxc5 {[%emt 0:03:00]} Nd7 {[%emt 0:01:33]} 12. Nb3 {[%emt 0:07:26]} Nxc5 {[%emt 0:04:10]} 13. Nbd4 {[%emt 0:02:52]} Nxd4 {[%emt 0:04:33]} 14. Nxd4 {[%emt 0:00:21]} a6 {[%emt 0:00:30]} 15. Be3 $146 {[%emt 0:05:59]} ({Predecessor:} 15. Bf4 Bh5 16. Qd2 {0-1 (46) Ruiz Sanchez,O (2426)-Cordova,E (2611) Cuernavaca 2015}) 15... Be7 {[%emt 0:13:44]} 16. a4 {[%emt 0:05:08]} Qa5 {[%emt 0:12:47]} 17. Qe2 {[%emt 0:13:44]} O-O {[%emt 0:03:44]} 18. f4 {[%emt 0:04:53]} Rfd8 {[%emt 0:10:00]} 19. f5 {[%emt 0:04:08]} exf5 {[%emt 0:00:42]} 20. Nxf5 {[%emt 0:01:26]} Qc7 {[%emt 0:05:45]} 21. Qg4 {[%emt 0:12:13]} Ne6 $1 {[%emt 0:11:55]} 22. Rac1 {[%emt 0:06:33]} Bc5 {[%emt 0:01:57]} 23. Bxe6 {[%emt 0:03:44]} Bxe3+ {[%emt 0:00:04]} 24. Nxe3 {[%emt 0:00:23]} Qxe5 {[%emt 0:01:59]} 25. Bxf7+ {[%emt 0:01:22]} Bxf7 {[%emt 0:00:08]} 26. Nf5 {[%emt 0:00:21]} Bg6 {[%emt 0:01:06]} 27. Rce1 {[%emt 0:03:20]} Qc5+ {[%emt 0:01:11]} 28. Kh1 {[%emt 0:00:45]} Re8 {[%emt 0:02:02]} 29. Rc1 {[%emt 0:00:39]} Bxf5 {[%emt 0:01:40]} 30. Qxf5 {[%emt 0:00:04]} Qxf5 {[%emt 0:00:06]} 31. Rxf5 {[%emt 0:00:04]} Rac8 {[%emt 0:02:17]} 32. Rxc8 {[%emt 0:02:27]} Rxc8 {[%emt 0:00:03]} 33. Kg1 {[%emt 0:00:04]} Rc4 {[%emt 0:00:58]} 34. b3 {[%emt 0:01:57]} Rb4 {[%emt 0:03:41]} 35. Rf3 {[%emt 0:00:09]} g5 {[%emt 0:00:23]} 36. h3 {[%emt 0:00:56]} Kg7 {[%emt 0:00:30]} 37. g4 {[%emt 0:00:26]} Kg6 {[%emt 0:00:22]} 38. Kg2 {[%emt 0:00:05]} h5 {[%emt 0:02:58]} 39. gxh5+ {[%emt 0:00:17]} Kxh5 {[%emt 0:00:04]} 40. Kg3 {[%emt 0:00:00]} Rd4 {[%emt 0:00:00]} 41. Rc3 {[%emt 0:01:32]} Kg6 {[%emt 0:05:36]} 42. Rf3 {[%emt 0:00:06]} b5 {[%emt 0:00:29]} 43. axb5 {[%emt 0:02:00]} axb5 {[%emt 0:00:04]} 44. Rc3 {[%emt 0:00:40]} b4 {[%emt 0:01:09]} 45. Rc6+ {[%emt 0:00:34]} Kh5 {[%emt 0:01:35]} 46. Rf6 {[%emt 0:01:00]} Rd3+ {[%emt 0:00:22]} 47. Rf3 {[%emt 0:00:04]} Rxf3+ {[%emt 0:00:35]} 48. Kxf3 {[%emt 0:00:03]} Kh4 {[%emt 0:00:02]} 49. Kg2 {[%emt 0:00:11]} g4 {[%emt 0:00:04]} 50. hxg4 {[%emt 0:00:49]} Kxg4 {[%emt 0:00:03]} 51. Kf2 {[%emt 0:00:04]} Kf4 {[%emt 0:00:05]} 52. Ke2 {[%emt 0:00:03] [#]} Ke4 $1 {[%emt 0:00:03]} 53. Kd2 {[%emt 0:00:21]} Kd4 {[%emt 0:00:04]} 54. Kc2 {[%emt 0:00:03]} Ke3 {[%emt 0:00:04]} 55. Kb2 {[%emt 0:00:52]} Kd2 {[%emt 0:00:09]} 56. Ka2 {[%emt 0:00:02]} Kc2 {[%emt 0:00:08]} 0-1

[Event "WYCC 2018 G14"]
[Site "Halkidiki"]
[Date "2018.10.21"]
[Round "2"]
[White "Kuhar, Larisa"]
[Black "Kumar, Arya"]
[Result "1-0"]
[ECO "B18"]
[WhiteElo "1916"]
[BlackElo "1619"]
[Annotator "NA"]
[PlyCount "89"]
[EventDate "2018.10.20"]
[EventType "swiss"]
[EventCountry "GRE"]
[SourceTitle "playchess.com"]
[Source "ChessBase"]
[SourceQuality "1"]
[TimeControl "40/5400+30:1800+30"]

1. e4 {[%emt 0:00:00]} c6 {[%emt 0:00:00]} 2. d4 {[%emt 0:00:00]} d5 {[%emt 0:00:00]} 3. Nc3 {[%emt 0:00:00]} dxe4 {[%emt 0:00:00]} 4. Nxe4 {[%emt 0:00:07]} Bf5 {[%emt 0:00:00]} 5. Ng3 {[%emt 0:00:11]} Bg6 {[%emt 0:00:01]} 6. Bc4 {[%emt 0:00:14]} e6 {[%emt 0:00:06]} 7. N1e2 {[%emt 0:00:21]} Nf6 {[%emt 0:00:07]} 8. Nf4 {[%emt 0:00:38]} Bd6 {[%emt 0:00:19]} 9. c3 {[%emt 0:00:22]} Qc7 {[%emt 0:00:06] B18: Classical Caro-Kann: 4...Bf5 sidelines} 10. Qf3 {[%emt 0:00:42]} Nbd7 {[%emt 0:00:08]} 11. O-O {[%emt 0:03:54]} O-O {[%emt 0:00:07]} (11... c5 12. dxc5 Bxc5 13. Bb3 O-O-O 14. Nxg6 hxg6 15. Bf4 e5 16. Be3 e4 17. Qe2 Bxe3 18. Qxe3 Rxh2 19. Rfd1 Rdh8 20. Qxa7 e3 21. Qxe3 Ng4 {0-1 (21) Zherebukh,Y (2605)-Nakamura,H (2793) Saint Louis 2017 CBM 178 [Moradiabadi,E]}) 12. Nxg6 {[%emt 0:05:00]} hxg6 {[%emt 0:00:07]} 13. Bb3 {[%emt 0:01:11]} c5 {[%emt 0:00:22]} 14. Bg5 {[%emt 0:06:30]} cxd4 {[%emt 0:03:23]} 15. cxd4 {[%emt 0:00:21] [#]} Qa5 $146 {[%emt 0:00:39]} ({Predecessor:} 15... Rac8 16. Rad1 Nh7 17. Be3 {1-0 (41) Zivkovic,V (2419)-Zelcic,R (2569) Zagreb 2009}) 16. Bxf6 {[%emt 0:11:12]} Nxf6 {[%emt 0:00:08]} 17. Qxb7 {[%emt 0:06:22]} Qd2 {[%emt 0:11:58]} 18. Rfd1 {[%emt 0:08:05]} Qxb2 {[%emt 0:01:07]} 19. Rac1 {[%emt 0:02:07]} a5 {[%emt 0:08:00]} 20. Ne4 {[%emt 0:08:59]} Nxe4 {[%emt 0:07:40]} 21. Qxe4 {[%emt 0:00:08]} Rac8 $11 {[%emt 0:09:58]} 22. Rb1 {[%emt 0:08:41]} Qc3 {[%emt 0:10:40]} 23. Rd3 {[%emt 0:14:47]} Qc6 {[%emt 0:09:42]} 24. Qh4 {[%emt 0:08:20]} Rfd8 {[%emt 0:06:26]} 25. Re1 {[%emt 0:03:14]} Bb4 {[%emt 0:11:46]} 26. Ree3 {[%emt 0:03:12]} a4 {[%emt 0:03:55]} 27. Rh3 {[%emt 0:02:09]} f6 {[%emt 0:04:13]} 28. Bd1 {[%emt 0:03:16]} Qc1 {[%emt 0:04:47]} 29. Qg4 {[%emt 0:01:14]} Kf7 {[%emt 0:05:34]} 30. d5 {[%emt 0:01:38]} exd5 {[%emt 0:01:02]} 31. Qxb4 {[%emt 0:00:43]} Rc4 {[%emt 0:00:54]} 32. Qd2 {[%emt 0:00:33]} Re8 {[%emt 0:01:24]} 33. Rhe3 {[%emt 0:01:27]} d4 {[%emt 0:01:08]} 34. Qxc1 {[%emt 0:00:47]} Rxc1 {[%emt 0:00:08]} 35. Rxe8 {[%emt 0:00:17]} Kxe8 {[%emt 0:00:07]} 36. Rxd4 {[%emt 0:00:05]} a3 {[%emt 0:00:34]} 37. g3 {[%emt 0:00:39]} Ra1 {[%emt 0:00:08]} 38. Rd2 {[%emt 0:00:09]} Rb1 {[%emt 0:00:25]} 39. Kg2 {[%emt 0:00:33]} Rb2 {[%emt 0:00:18]} 40. Rxb2 {[%emt 0:00:00]} axb2 {[%emt 0:00:00]} 41. Bc2 {[%emt 0:00:45]} g5 {[%emt 0:00:24]} 42. Kf3 {[%emt 0:00:13]} Kd7 {[%emt 0:00:07]} 43. Ke3 {[%emt 0:00:11]} Kc6 {[%emt 0:00:05]} 44. Kd3 {[%emt 0:00:08]} Kc5 {[%emt 0:00:05]} 45. Kc3 {[%emt 0:00:06]} 1-0

[Event "WYCC 2018 G14"]
[Site "Halkidiki"]
[Date "2018.10.21"]
[Round "2"]
[White "Baiburina, Kamilla"]
[Black "Song, Yuxin"]
[Result "0-1"]
[ECO "B50"]
[WhiteElo "1907"]
[BlackElo "2178"]
[Annotator "NA"]
[PlyCount "90"]
[EventDate "2018.10.20"]
[EventType "swiss"]
[EventCountry "GRE"]
[SourceTitle "playchess.com"]
[Source "ChessBase"]
[SourceQuality "1"]
[TimeControl "40/5400+30:1800+30"]

1. e4 {[%emt 0:00:00]} c5 {[%emt 0:00:00]} 2. Nf3 {[%emt 0:00:00]} d6 {[%emt 0:00:00]} 3. c3 {[%emt 0:00:00]} Nf6 {[%emt 0:00:00]} 4. Be2 {[%emt 0:00:00]} Bg4 {[%emt 0:00:04]} 5. O-O {[%emt 0:01:04]} e6 {[%emt 0:00:11]} 6. Bb5+ {[%emt 0:01:38]} Nbd7 {[%emt 0:00:38]} 7. Re1 {[%emt 0:00:38]} a6 {[%emt 0:00:53]} 8. Bxd7+ {[%emt 0:01:39]} Qxd7 {[%emt 0:00:39]} 9. d4 {[%emt 0:00:27]} cxd4 {[%emt 0:02:39]} 10. cxd4 {[%emt 0:00:08]} d5 {[%emt 0:00:07]} 11. e5 {[%emt 0:02:49]} Ne4 {[%emt 0:00:10]} 12. a3 {[%emt 0:07:28]} Be7 {[%emt 0:02:14]} 13. Nbd2 {[%emt 0:03:01]} Ng5 {[%emt 0:00:30]} 14. Qb3 {[%emt 0:03:23]} Nxf3+ {[%emt 0:01:39]} 15. Nxf3 {[%emt 0:01:53]} h6 {[%emt 0:00:08]} 16. Bd2 {[%emt 0:02:52]} O-O {[%emt 0:02:01]} 17. Rac1 {[%emt 0:02:28]} Rfc8 {[%emt 0:00:49]} 18. h3 {[%emt 0:01:07]} Bf5 {[%emt 0:00:42]} 19. Nh2 {[%emt 0:08:35]} Rc6 {[%emt 0:05:59]} 20. Rxc6 {[%emt 0:02:01]} bxc6 {[%emt 0:00:48]} 21. Rc1 {[%emt 0:02:14]} Rc8 {[%emt 0:07:46]} 22. Qb6 {[%emt 0:06:06]} Bd3 {[%emt 0:02:27]} 23. Qb3 {[%emt 0:03:04]} Be2 {[%emt 0:03:52]} 24. Nf1 {[%emt 0:05:31]} c5 {[%emt 0:01:53]} 25. Qc2 {[%emt 0:03:57]} c4 {[%emt 0:05:06]} 26. Ne3 {[%emt 0:04:24]} Bg5 {[%emt 0:02:11]} 27. Re1 {[%emt 0:01:49]} Bd3 {[%emt 0:00:20]} 28. Qd1 {[%emt 0:01:35]} Rb8 {[%emt 0:02:28]} 29. Bc3 {[%emt 0:01:25]} Rb3 {[%emt 0:01:20]} 30. Nc2 {[%emt 0:01:49]} Qb5 {[%emt 0:02:17]} 31. Nb4 {[%emt 0:11:16]} Bg6 {[%emt 0:00:29]} 32. g3 {[%emt 0:01:59]} a5 {[%emt 0:01:45]} 33. Nc2 {[%emt 0:02:47]} Rxb2 {[%emt 0:01:07]} 34. Bxb2 {[%emt 0:00:26]} Qxb2 {[%emt 0:00:01]} 35. Ne3 $19 {[%emt 0:03:32]} Bd3 {[%emt 0:01:17]} 36. Qa1 {[%emt 0:01:59]} Qb3 {[%emt 0:00:39]} 37. Qd1 {[%emt 0:03:05]} Qxa3 {[%emt 0:02:49]} 38. Qa1 {[%emt 0:01:59]} Qb4 {[%emt 0:01:00]} 39. h4 {[%emt 0:01:06]} Bd8 {[%emt 0:01:08]} 40. Rc1 {[%emt 0:00:00]} Bb6 {[%emt 0:00:00]} 41. Ng2 {[%emt 0:05:36]} a4 {[%emt 0:04:45]} 42. Nf4 {[%emt 0:02:33]} Be4 {[%emt 0:00:16]} 43. f3 {[%emt 0:06:58]} Qd2 {[%emt 0:00:37]} 44. Rd1 {[%emt 0:00:58]} Qe3+ {[%emt 0:00:09]} 45. Kh2 {[%emt 0:00:47]} Qf2+ {[%emt 0:00:13]} 0-1